fUST/lending_fUST_20251219
["ID","MTS","AMOUNT","RATE_DAILY","PERIOD"]
[399074205,1766103055878,-500.0,0.00051232,120]
[399074206,1766103055889,-328.44,0.00051232,120]
[399074207,1766103055898,-500.0,0.00051232,120]
[399074208,1766103055908,-806.72,0.00051232,120]
[399074209,1766103055917,-500.0,0.00051232,120]
[399074210,1766103055927,-500.0,0.00051232,120]
[399074211,1766103055936,-500.0,0.00051232,120]
[399074212,1766103055946,-500.0,0.00051232,120]
[399074213,1766103055956,-527.41,0.00051232,120]
[399074214,1766103055966,-520.31,0.00051232,120]
[399074215,1766103055975,-500.0,0.00051232,120]
[399074216,1766103055985,-871.78,0.00051232,120]
[399074217,1766103055994,-500.0,0.00051232,120]
[399074218,1766103056004,-500.0,0.00051232,120]
[399074219,1766103056014,-215.53871222,0.00051232,120]
[399074220,1766103056024,-500.0,0.00051232,120]
[399074221,1766103056033,-1078.25,0.00051232,120]
[399074222,1766103056043,-500.0,0.00051232,120]
[399074223,1766103056052,-500.0,0.00051232,7]
[399074224,1766103056062,-500.0,0.00051232,120]
[399074225,1766103056071,-1005.34,0.00051232,120]
[399074226,1766103056081,-500.0,0.00051232,120]
[399074227,1766103056091,-500.0,0.00051232,120]
[399074228,1766103056101,-500.0,0.00051232,120]
[399074229,1766103056110,-1000.0,0.00051232,2]
[399074230,1766103056119,-703.1,0.00051232,120]
[399074231,1766103056129,-655.27,0.00051232,120]
[399074232,1766103056138,-500.0,0.00051232,120]
[399074233,1766103056148,-500.0,0.00051232,5]
[399074234,1766103056158,-500.0,0.00051232,120]
[399074235,1766103056168,-605.33,0.00051232,120]
[399074236,1766103056178,-500.0,0.00051232,120]
[399074237,1766103056188,-500.0,0.00051232,120]
[399074238,1766103056198,-500.0,0.00051232,120]
[399074239,1766103056208,-627.9,0.00051232,120]
[399074240,1766103056217,-500.0,0.00051232,120]
[399074241,1766103056227,-500.0,0.00051232,120]
[399074242,1766103056236,-500.0,0.00051232,120]
[399074243,1766103056246,-500.0,0.00051232,30]
[399074244,1766103056255,-263.79486184,0.00051232,120]
[399074245,1766103056264,-500.0,0.00051232,120]
[399074246,1766103056273,-796.43,0.00051232,120]
[399074247,1766103056282,-705.3,0.00051232,120]
[399074248,1766103056293,-500.0,0.00051232,120]
[399074249,1766103056303,-500.0,0.00051232,120]
[399074250,1766103056312,-704.94,0.00051232,21]
[399074251,1766103056321,-500.0,0.00051232,120]
[399074252,1766103056331,-802.08,0.00051232,120]
[399074253,1766103056341,-500.0,0.00051232,30]
[399074254,1766103056350,-513.90176925,0.00051232,120]
[399074255,1766103056360,-500.0,0.00051232,120]
[399074256,1766103056369,-500.0,0.00051232,120]
[399074257,1766103056378,-500.0,0.00051232,120]
[399074258,1766103056388,-657.76,0.00051232,120]
[399074259,1766103056397,-1497.98,0.00051232,120]
[399074260,1766103056407,-500.0,0.00051232,120]
[399074261,1766103056417,-500.0,0.00051232,120]
[399074262,1766103056427,-417.83215424,0.00051232,120]
[399074263,1766103056436,-500.0,0.00051232,120]
[399074264,1766103056446,-2437.85,0.00051232,3]
[399074265,1766103056457,-500.0,0.00051232,120]
[399074266,1766103056466,-629.41,0.00051232,120]
[399074267,1766103056476,-1535.62,0.00051232,120]
[399074268,1766103056486,-500.0,0.00051232,120]
[399074269,1766103056495,-4331.02,0.00051232,120]
[399074270,1766103056505,-500.0,0.00051232,120]
[399074271,1766103056514,-500.0,0.00051232,120]
[399074272,1766103056524,-641.82,0.00051232,120]
[399074273,1766103056533,-500.0,0.00051232,120]
[399074274,1766103056543,-534.04,0.00051232,120]
[399074275,1766103056552,-534.27,0.00051232,120]
[399074276,1766103056562,-611.77,0.00051232,120]
[399074277,1766103056572,-500.0,0.00051232,120]
[399074278,1766103056696,-500.0,0.00051232,120]
[399074279,1766103056705,-500.0,0.00051232,120]
[399074280,1766103056714,-1000.0,0.00051232,2]
[399074281,1766103056724,-682.25,0.00051232,120]
[399074282,1766103056733,-833.32,0.00051232,120]
[399074283,1766103056743,-735.72,0.00051232,120]
[399074284,1766103056752,-500.0,0.00051232,120]
[399074285,1766103056762,-1167.0,0.00051232,120]
[399074286,1766103056771,-500.0,0.00051232,120]
[399074287,1766103056781,-500.0,0.00051232,120]
[399074288,1766103056791,-581.6958429,0.00051232,120]
[399074289,1766103056802,-1143.45,0.00051232,120]
[399074290,1766103056812,-500.0,0.00051232,120]
[399074291,1766103056821,-500.0,0.00051232,120]
[399074292,1766103056830,-500.0,0.00051232,120]
[399074293,1766103056840,-500.0,0.00051232,120]
[399074294,1766103056850,-500.0,0.00051232,120]
[399074295,1766103056861,-572.22,0.00051232,120]
[399074296,1766103056871,-821.33,0.00051232,120]
[399074297,1766103056881,-500.0,0.00051232,120]
[399074298,1766103056890,-1008.83,0.00051232,120]
[399074299,1766103056900,-500.0,0.00051232,120]
[399074300,1766103056910,-465.50773319,0.00051232,120]
[399074301,1766103056920,-500.0,0.00051232,120]
[399074302,1766103056930,-316.41226248,0.00051232,60]
[399074303,1766103056939,-500.0,0.00051232,120]
[399074304,1766103056949,-196.18043844,0.00051293,7]
[399074305,1766103056960,-663.93287602,0.00051375,2]
[399074306,1766103056969,-338.41641089,0.00051386,120]
[399074307,1766103056979,-165.65323134,0.00051386,120]
[399074308,1766103056990,-500.0,0.00051506,120]
[399074309,1766103057000,-500.0,0.00051506,120]
[399074310,1766103057010,-500.0,0.00051506,120]
[399074311,1766103057019,-500.0,0.00051506,120]
[399074312,1766103057028,-500.0,0.00051506,120]
[399074313,1766103057038,-495.0,0.00051506,120]
[399074314,1766103057047,-500.0,0.00051506,120]
[399074315,1766103057057,-686.3,0.00051506,120]
[399074316,1766103057067,-849.44,0.00051506,120]
[399074317,1766103057076,-507.7438862,0.00051506,120]
[399074318,1766103057085,-500.0,0.00051506,120]
[399074319,1766103057094,-500.0,0.00051506,120]
[399074320,1766103057103,-1097.88,0.00051506,120]
[399074321,1766103057112,-500.0,0.00051506,120]
[399074322,1766103057121,-500.0,0.00051506,120]
[399074323,1766103057131,-530.58,0.00051506,120]
[399074324,1766103057140,-1257.84,0.00051506,120]
[399074325,1766103057149,-500.0,0.00051506,120]
[399074326,1766103057161,-500.0,0.00051506,120]
[399074327,1766103057171,-500.0,0.00051506,120]
[399074328,1766103057181,-500.0,0.00051506,120]
[399074329,1766103057192,-818.83,0.00051506,120]
[399074330,1766103057203,-1000.0,0.00051506,120]
[399074331,1766103057212,-500.0,0.00051506,120]
[399074332,1766103057223,-500.0,0.00051506,30]
[399074333,1766103057232,-1022.93,0.00051506,120]
[399074334,1766103057242,-500.0,0.00051506,120]
[399074335,1766103057252,-500.0,0.00051506,120]
[399074336,1766103057262,-500.0,0.00051506,120]
[399074337,1766103057271,-500.0,0.00051506,120]
[399074338,1766103057280,-255.84485787,0.00051506,120]
[399074339,1766103057288,-806.72,0.00051506,120]
[399074340,1766103057298,-500.0,0.00051506,120]
[399074341,1766103057307,-404.12,0.00051506,120]
[399074342,1766103057316,-500.0,0.00051506,120]
[399074343,1766103057326,-500.0,0.00051506,120]
[399074344,1766103057336,-527.41,0.00051506,120]
[399074345,1766103057344,-520.31,0.00051506,120]
[399074346,1766103057354,-500.0,0.00051506,120]
[399074347,1766103057363,-871.78,0.00051506,120]
[399074348,1766103057372,-500.0,0.00051506,120]
[399074349,1766103057382,-206.11,0.00051506,120]
[399074350,1766103057391,-500.0,0.00051506,120]
[399074351,1766103057401,-1078.25,0.00051506,120]
[399074352,1766103057410,-500.0,0.00051506,120]
[399074353,1766103057420,-500.0,0.00051506,7]
[399074354,1766103057429,-506.26188827,0.00051506,120]
[399074355,1766103057438,-1005.34,0.00051506,120]
[399074356,1766103057447,-180.89521929,0.00051506,120]
[399074357,1766103057457,-233.02651038,0.00051506,120]
[399074358,1766103057466,-500.0,0.00051506,120]
[399074359,1766103057475,-1000.0,0.00051506,2]
[399074360,1766103057485,-703.1,0.00051506,120]
[399074361,1766103057495,-655.27,0.00051506,120]
[399074362,1766103057506,-500.0,0.00051506,120]
[399074363,1766103057515,-500.0,0.00051506,5]
[399074364,1766103057524,-500.0,0.00051506,120]
[399074365,1766103057533,-500.0,0.00051506,120]
[399074366,1766103057543,-500.0,0.00051506,120]
[399074367,1766103057552,-209.37,0.00051506,120]
[399074368,1766103057561,-627.9,0.00051506,120]
[399074369,1766103057570,-500.0,0.00051506,120]
[399074370,1766103057579,-500.0,0.00051506,120]
[399074371,1766103057588,-186.5,0.00051506,120]
[399074372,1766103057597,-500.0,0.00051506,30]
[399074373,1766103057607,-500.0,0.00051506,120]
[399074374,1766103057616,-796.43,0.00051506,120]
[399074375,1766103057626,-705.3,0.00051506,120]
[399074376,1766103057635,-500.0,0.00051506,120]
[399074377,1766103057645,-500.0,0.00051506,120]
[399074378,1766103057655,-704.94,0.00051506,21]
[399074379,1766103057664,-500.0,0.00051506,120]
[399074380,1766103057674,-802.08,0.00051506,120]
[399074381,1766103057683,-500.0,0.00051506,30]
[399074382,1766103057692,-500.0,0.00051506,120]
[399074383,1766103057701,-500.0,0.00051506,120]
[399074384,1766103057710,-500.0,0.00051506,120]
[399074385,1766103057719,-657.76,0.00051506,120]
[399074386,1766103057728,-1497.98,0.00051506,120]
[399074387,1766103057741,-415.57,0.00051506,120]
[399074388,1766103057751,-500.0,0.00051506,120]
[399074389,1766103057760,-510.52716398,0.00051506,120]
[399074390,1766103057769,-2437.85,0.00051506,3]
[399074391,1766103057778,-194.27,0.00051506,120]
[399074392,1766103057787,-629.41,0.00051506,120]
[399074393,1766103057800,-1535.62,0.00051506,120]
[399074394,1766103057810,-500.0,0.00051506,120]
[399074395,1766103057819,-4331.02,0.00051506,120]
[399074396,1766103057829,-500.0,0.00051506,120]
[399074397,1766103057839,-500.0,0.00051506,120]
[399074398,1766103057849,-641.82,0.00051506,120]
[399074399,1766103057858,-500.0,0.00051506,120]
[399074401,1766103057868,-534.04,0.00051506,120]
[399074402,1766103057877,-534.27,0.00051506,120]
[399074403,1766103057887,-611.77,0.00051506,120]
[399074404,1766103057897,-500.0,0.00051506,120]
[399074405,1766103057906,-500.0,0.00051506,120]
[399074406,1766103057916,-500.0,0.00051506,120]
[399074407,1766103057925,-1000.0,0.00051506,2]
[399074408,1766103057936,-682.25,0.00051506,120]
[399074409,1766103057945,-833.32,0.00051506,120]
[399074410,1766103057955,-272.69262,0.00051506,120]
[399074411,1766103057964,-735.72,0.00051506,120]
[399074412,1766103057973,-272.69262,0.00051506,120]
[399074413,1766103057983,-272.69262,0.00051506,120]
[399074414,1766103057992,-500.0,0.00051506,120]
[399074415,1766103058001,-272.692629,0.00051506,120]
[399074416,1766103058011,-1167.0,0.00051506,120]
[399074417,1766103058020,-500.0,0.00051506,120]
[399074418,1766103058029,-500.0,0.00051506,120]
[399074419,1766103058038,-1143.45,0.00051506,120]
[399074420,1766103058048,-1377.576659,0.00051506,15]
[399074421,1766103058057,-500.0,0.00051506,120]
[399074422,1766103058067,-1377.576659,0.00051506,15]
[399074423,1766103058076,-1377.576659,0.00051506,15]
[399074424,1766103058086,-500.0,0.00051506,120]
[399074425,1766103058095,-1377.576663,0.00051506,15]
[399074426,1766103058104,-500.0,0.00051506,120]
[399074427,1766103058114,-500.0,0.00051506,120]
[399074428,1766103058122,-503.73,0.00051506,120]
[399074429,1766103058131,-572.22,0.00051506,120]
[399074430,1766103058140,-821.33,0.00051506,120]
[399074431,1766103058149,-500.0,0.00051506,120]
[399074432,1766103058158,-1008.83,0.00051506,120]
[399074433,1766103058167,-500.0,0.00051506,120]
[399074434,1766103058176,-500.0,0.00051506,120]
[399074435,1766103058186,-500.0,0.00051506,120]
[399074436,1766103058195,-1300.0,0.00051507,60]
[399074437,1766103058205,-158.54796033,0.00051584,120]
[399074438,1766103058215,-272.85129156,0.00051584,2]
[399074439,1766103058224,-170.42,0.000516,14]
[399074440,1766103058233,-500.0,0.0005178,120]
[399074441,1766103058242,-187.47529548,0.0005178,120]
[399074442,1766103058251,-500.0,0.0005178,120]
[399074443,1766103058261,-500.0,0.0005178,120]
[399074444,1766103058270,-479.71,0.0005178,120]
[399074445,1766103058279,-431.80620043,0.0005178,120]
[399074446,1766103058288,-686.3,0.0005178,120]
[399074447,1766103058297,-849.44,0.0005178,120]
[399074448,1766103058306,-579.31240884,0.0005178,120]
[399074449,1766103058316,-500.0,0.0005178,120]
[399074450,1766103058324,-1097.88,0.0005178,120]
[399074451,1766103058334,-500.0,0.0005178,120]
[399074452,1766103058342,-500.0,0.0005178,120]
[399074453,1766103058351,-530.58,0.0005178,120]
[399074454,1766103058360,-1257.84,0.0005178,120]
[399074455,1766103058369,-500.0,0.0005178,120]
[399074456,1766103058378,-500.0,0.0005178,120]
[399074457,1766103058387,-430.24131689,0.0005178,120]
[399074458,1766103058396,-500.0,0.0005178,120]
[399074459,1766103058405,-818.83,0.0005178,120]
[399074460,1766103058415,-1000.0,0.0005178,120]
[399074461,1766103058424,-500.0,0.0005178,120]
[399074462,1766103058432,-500.0,0.0005178,30]
[399074463,1766103058442,-1022.93,0.0005178,120]
[399074464,1766103058451,-500.0,0.0005178,120]
[399074465,1766103058461,-500.0,0.0005178,120]
[399074466,1766103058470,-500.0,0.0005178,120]
[399074467,1766103058479,-500.0,0.0005178,120]
[399074468,1766103058488,-806.72,0.0005178,120]
[399074469,1766103058497,-500.0,0.0005178,120]
[399074470,1766103058507,-500.0,0.0005178,120]
[399074471,1766103058516,-500.0,0.0005178,120]
[399074472,1766103058525,-527.41,0.0005178,120]
[399074473,1766103058534,-520.31,0.0005178,120]
[399074474,1766103058543,-274.87000001,0.0005178,120]
[399074475,1766103058552,-871.78,0.0005178,120]
[399074476,1766103058562,-500.0,0.0005178,120]
[399074477,1766103058573,-500.0,0.0005178,120]
[399074478,1766103058583,-1078.25,0.0005178,120]
[399074479,1766103058592,-500.0,0.0005178,120]
[399074480,1766103058602,-500.0,0.0005178,7]
[399074481,1766103058613,-1005.34,0.0005178,120]
[399074482,1766103058622,-500.0,0.0005178,120]
[399074483,1766103058631,-1000.0,0.0005178,2]
[399074484,1766103058640,-703.1,0.0005178,120]
[399074485,1766103058649,-655.27,0.0005178,120]
[399074486,1766103058659,-593.30040516,0.0005178,120]
[399074487,1766103058671,-500.0,0.0005178,5]
[399074488,1766103058680,-500.0,0.0005178,120]
[399074489,1766103058689,-500.0,0.0005178,120]
[399074490,1766103058699,-500.0,0.0005178,120]
[399074491,1766103058709,-627.9,0.0005178,120]
[399074492,1766103058718,-500.0,0.0005178,120]
[399074493,1766103058728,-500.0,0.0005178,120]
[399074494,1766103058738,-500.0,0.0005178,30]
[399074495,1766103058747,-500.0,0.0005178,120]
[399074496,1766103058756,-796.43,0.0005178,120]
[399074497,1766103058766,-705.3,0.0005178,120]
[399074498,1766103058777,-500.0,0.0005178,120]
[399074499,1766103058786,-500.0,0.0005178,120]
[399074500,1766103058797,-704.94,0.0005178,21]
[399074501,1766103058807,-500.0,0.0005178,120]
[399074502,1766103058818,-802.08,0.0005178,120]
[399074503,1766103058827,-500.0,0.0005178,30]
[399074504,1766103058836,-500.0,0.0005178,120]
[399074505,1766103058846,-500.0,0.0005178,120]
[399074506,1766103058856,-500.0,0.0005178,120]
[399074507,1766103058865,-657.76,0.0005178,120]
[399074508,1766103058878,-1497.98,0.0005178,120]
[399074509,1766103058888,-500.0,0.0005178,120]
[399074510,1766103058897,-2437.85,0.0005178,3]
[399074511,1766103058907,-629.41,0.0005178,120]
[399074512,1766103058916,-1535.62,0.0005178,120]
[399074513,1766103058925,-500.0,0.0005178,120]
[399074514,1766103058935,-4331.02,0.0005178,120]
[399074515,1766103058945,-500.0,0.0005178,120]
[399074516,1766103058954,-500.0,0.0005178,120]
[399074517,1766103058964,-641.82,0.0005178,120]
[399074518,1766103058974,-500.0,0.0005178,120]
[399074519,1766103058983,-534.04,0.0005178,120]
[399074520,1766103058993,-534.27,0.0005178,120]
[399074521,1766103059003,-611.77,0.0005178,120]
[399074522,1766103059013,-500.0,0.0005178,120]
[399074523,1766103059023,-500.0,0.0005178,120]
[399074524,1766103059032,-500.0,0.0005178,120]
[399074525,1766103059041,-1000.0,0.0005178,2]
[399074526,1766103059051,-682.25,0.0005178,120]
[399074527,1766103059060,-833.32,0.0005178,120]
[399074528,1766103059070,-735.72,0.0005178,120]
[399074529,1766103059079,-500.0,0.0005178,120]
[399074530,1766103059089,-1167.0,0.0005178,120]
[399074532,1766103059098,-500.0,0.0005178,120]
[399074533,1766103059108,-500.0,0.0005178,120]
[399074534,1766103059117,-1143.45,0.0005178,120]
[399074535,1766103059126,-500.0,0.0005178,120]
[399074536,1766103059136,-500.0,0.0005178,120]
[399074537,1766103059145,-500.0,0.0005178,120]
[399074538,1766103059154,-500.0,0.0005178,120]
[399074539,1766103059164,-572.22,0.0005178,120]
[399074540,1766103059173,-821.33,0.0005178,120]
[399074541,1766103059182,-500.0,0.0005178,120]
[399074542,1766103059191,-1008.83,0.0005178,120]
[399074543,1766103059200,-500.0,0.0005178,120]
[399074544,1766103059209,-517.22947012,0.0005178,120]
[399074545,1766103059219,-500.0,0.0005178,120]
[399074546,1766103059229,-1821.14,0.000518,14]
[399074547,1766103059238,-274.17,0.000518,30]
[399074548,1766103059248,-338.41641089,0.0005182,120]
[399074549,1766103059257,-165.65323134,0.0005182,120]
[399074550,1766103059267,-688.49839244,0.00051923,2]
[399074551,1766103059276,-350.0,0.00051945,120]
[399074552,1766103059285,-1000.0,0.00052,120]
[399074553,1766103059294,-500.0,0.00052054,120]
[399074554,1766103059303,-500.0,0.00052054,120]
[399074555,1766103059314,-500.0,0.00052054,120]
[399074556,1766103059325,-686.3,0.00052054,120]
[399074557,1766103059334,-849.44,0.00052054,120]
[399074558,1766103059344,-500.0,0.00052054,120]
[399074559,1766103059354,-1097.88,0.00052054,120]
[399074560,1766103059363,-500.0,0.00052054,120]
[399074561,1766103059372,-500.0,0.00052054,120]
[399074562,1766103059381,-530.58,0.00052054,120]
[399074563,1766103059391,-1257.84,0.00052054,120]
[399074564,1766103059400,-500.0,0.00052054,120]
[399074565,1766103059409,-625.0,0.00052054,120]
[399074566,1766103059418,-500.0,0.00052054,120]
[399074567,1766103059428,-818.83,0.00052054,120]
[399074568,1766103059437,-1000.0,0.00052054,120]
[399074569,1766103059446,-500.0,0.00052054,120]
[399074570,1766103059456,-500.0,0.00052054,30]
[399074571,1766103059466,-1022.93,0.00052054,120]
[399074572,1766103059476,-500.0,0.00052054,120]
[399074573,1766103059485,-500.0,0.00052054,120]
[399074574,1766103059497,-466.63862134,0.00052054,120]
[399074575,1766103059507,-806.72,0.00052054,120]
[399074576,1766103059517,-500.0,0.00052054,120]
[399074577,1766103059526,-500.0,0.00052054,120]
[399074578,1766103059536,-500.0,0.00052054,120]
[399074579,1766103059546,-527.41,0.00052054,120]
[399074580,1766103059555,-520.31,0.00052054,120]
[399074581,1766103059564,-871.78,0.00052054,120]
[399074582,1766103059574,-500.0,0.00052054,120]
[399074583,1766103059584,-500.0,0.00052054,120]
[399074584,1766103059594,-1078.25,0.00052054,120]
[399074585,1766103059603,-500.0,0.00052054,120]
[399074586,1766103059612,-500.0,0.00052054,7]
[399074587,1766103059621,-1005.34,0.00052054,120]
[399074588,1766103059631,-500.0,0.00052054,120]
[399074589,1766103059640,-1000.0,0.00052054,2]
[399074590,1766103059650,-703.1,0.00052054,120]
[399074591,1766103059659,-655.27,0.00052054,120]
[399074592,1766103059669,-188.6960517,0.00052054,5]
[399074593,1766103059678,-500.0,0.00052054,120]
[399074594,1766103059687,-500.0,0.00052054,120]
[399074595,1766103059697,-500.0,0.00052054,120]
[399074596,1766103059707,-627.9,0.00052054,120]
[399074597,1766103059717,-500.0,0.00052054,120]
[399074598,1766103059726,-500.0,0.00052054,120]
[399074599,1766103059735,-500.0,0.00052054,30]
[399074600,1766103059744,-500.0,0.00052054,120]
[399074601,1766103059753,-796.43,0.00052054,120]
[399074602,1766103059873,-705.3,0.00052054,120]
[399074603,1766103059884,-500.0,0.00052054,120]
[399074604,1766103059893,-500.0,0.00052054,120]
[399074605,1766103059903,-704.94,0.00052054,21]
[399074606,1766103059912,-500.0,0.00052054,120]
[399074607,1766103059921,-802.08,0.00052054,120]
[399074608,1766103059930,-505.0,0.00052054,30]
[399074609,1766103059940,-500.0,0.00052054,120]
[399074610,1766103059949,-500.0,0.00052054,120]
[399074611,1766103059959,-500.0,0.00052054,120]
[399074612,1766103059968,-657.76,0.00052054,120]
[399074613,1766103059977,-1497.98,0.00052054,120]
[399074614,1766103059987,-500.0,0.00052054,120]
[399074615,1766103059996,-2437.85,0.00052054,3]
[399074616,1766103060005,-629.41,0.00052054,120]
[399074617,1766103060014,-1535.62,0.00052054,120]
[399074618,1766103060024,-500.0,0.00052054,120]
[399074619,1766103060035,-4331.02,0.00052054,120]
[399074620,1766103060045,-500.0,0.00052054,120]
[399074621,1766103060054,-500.0,0.00052054,120]
[399074622,1766103060064,-641.82,0.00052054,120]
[399074623,1766103060074,-500.0,0.00052054,120]
[399074624,1766103060084,-534.04,0.00052054,120]
[399074625,1766103060093,-534.27,0.00052054,120]
[399074626,1766103060102,-611.77,0.00052054,120]
[399074627,1766103060111,-500.0,0.00052054,120]
[399074628,1766103060120,-500.0,0.00052054,120]
[399074629,1766103060129,-500.0,0.00052054,120]
[399074630,1766103060138,-1000.0,0.00052054,2]
[399074631,1766103060148,-682.25,0.00052054,120]
[399074632,1766103060157,-833.32,0.00052054,120]
[399074633,1766103060166,-735.72,0.00052054,120]
[399074634,1766103060175,-500.0,0.00052054,120]
[399074635,1766103060184,-1167.0,0.00052054,120]
[399074636,1766103060194,-500.0,0.00052054,120]
[399074637,1766103060203,-500.0,0.00052054,120]
[399074638,1766103060212,-1143.45,0.00052054,120]
[399074639,1766103060223,-500.0,0.00052054,120]
[399074640,1766103060233,-500.0,0.00052054,120]
[399074641,1766103060242,-500.0,0.00052054,120]
[399074642,1766103060251,-500.0,0.00052054,120]
[399074643,1766103060262,-572.22,0.00052054,120]
[399074644,1766103060272,-821.33,0.00052054,120]
[399074645,1766103060282,-500.0,0.00052054,120]
[399074646,1766103060291,-1008.83,0.00052054,120]
[399074647,1766103060300,-382.36,0.00052054,120]
[399074648,1766103060309,-500.0,0.00052054,120]
[399074649,1766103060319,-338.41641089,0.00052255,120]
[399074650,1766103060329,-165.65323134,0.00052255,120]
[399074651,1766103060338,-500.0,0.00052328,120]
[399074652,1766103060349,-500.0,0.00052328,120]
[399074653,1766103060358,-500.0,0.00052328,120]
[399074654,1766103060368,-686.3,0.00052328,120]
[399074655,1766103060378,-849.44,0.00052328,120]
[399074656,1766103060387,-500.0,0.00052328,120]
[399074657,1766103060396,-1097.88,0.00052328,120]
[399074658,1766103060405,-500.0,0.00052328,120]
[399074659,1766103060414,-500.0,0.00052328,120]
[399074660,1766103060424,-530.58,0.00052328,120]
[399074661,1766103060434,-1257.84,0.00052328,120]
[399074662,1766103060443,-500.0,0.00052328,120]
[399074663,1766103060452,-500.0,0.00052328,120]
[399074664,1766103060463,-818.83,0.00052328,120]
[399074665,1766103060472,-1000.0,0.00052328,120]
[399074666,1766103060481,-500.0,0.00052328,120]
[399074667,1766103060490,-500.0,0.00052328,30]
[399074668,1766103060500,-1022.93,0.00052328,120]
[399074669,1766103060510,-500.0,0.00052328,120]
[399074670,1766103060519,-500.0,0.00052328,120]
[399074671,1766103060529,-806.72,0.00052328,120]
[399074672,1766103060538,-500.0,0.00052328,120]
[399074673,1766103060550,-500.0,0.00052328,120]
[399074674,1766103060559,-330.3945811,0.00052328,120]
[399074675,1766103060568,-527.41,0.00052328,120]
[399074676,1766103060577,-520.31,0.00052328,120]
[399074677,1766103060587,-871.78,0.00052328,120]
[399074678,1766103060598,-500.0,0.00052328,120]
[399074679,1766103060608,-500.0,0.00052328,120]
[399074680,1766103060618,-1078.25,0.00052328,120]
[399074681,1766103060627,-500.0,0.00052328,120]
[399074682,1766103060636,-500.0,0.00052328,7]
[399074683,1766103060645,-1005.34,0.00052328,120]
[399074684,1766103060655,-482.76,0.00052328,120]
[399074685,1766103060664,-1000.0,0.00052328,2]
[399074686,1766103060674,-703.1,0.00052328,120]
[399074687,1766103060683,-655.27,0.00052328,120]
[399074688,1766103060692,-500.0,0.00052328,120]
[399074689,1766103060702,-500.0,0.00052328,120]
[399074690,1766103060712,-209.27661244,0.00052328,120]
[399074691,1766103060722,-627.9,0.00052328,120]
[399074692,1766103060731,-500.0,0.00052328,120]
[399074693,1766103060740,-467.09764347,0.00052328,120]
[399074694,1766103060750,-500.0,0.00052328,30]
[399074695,1766103060760,-503.25,0.00052328,120]
[399074696,1766103060770,-796.43,0.00052328,120]
[399074697,1766103060780,-705.3,0.00052328,120]
[399074698,1766103060790,-500.0,0.00052328,120]
[399074699,1766103060804,-500.0,0.00052328,120]
[399074700,1766103060814,-704.94,0.00052328,21]
[399074701,1766103060824,-376.45,0.00052328,120]
[399074702,1766103060834,-802.08,0.00052328,120]
[399074703,1766103060845,-500.0,0.00052328,120]
[399074704,1766103060854,-500.0,0.00052328,120]
[399074705,1766103060864,-500.0,0.00052328,120]
[399074706,1766103060875,-657.76,0.00052328,120]